bitfinex-derivatives/quotes_BTCF0:USTF0_20250411
["timestamp","ask_amount","ask_price","bid_price","bid_amount"]
[1744332063951,0.8475017,79481.0,79480.0,0.01743064]
[1744332064153,0.8475017,79481.0,79480.0,0.00018882]
[1744332064947,0.1259176,79471.0,79470.0,0.1259191]
[1744332065144,0.4867176,79471.0,79470.0,0.1259191]
[1744332065762,0.5688176,79471.0,79470.0,0.1259191]
[1744332066453,0.5688176,79471.0,79470.0,0.12755254]
[1744332067246,0.4429,79471.0,79470.0,0.12755254]
[1744332067955,0.4429,79471.0,79470.0,0.13693821]
[1744332068953,0.5688176,79471.0,79470.0,0.13693821]
[1744332070254,0.4429,79471.0,79470.0,0.13693821]
[1744332070553,0.4014,79471.0,79470.0,0.13693821]
[1744332070753,0.4014,79471.0,79470.0,0.15378223]
[1744332070948,0.0406,79471.0,79470.0,0.15378223]
[1744332071954,0.1259135,79474.0,79473.0,0.1259144]
[1744332072157,0.1259135,79474.0,79473.0,0.14275842]
[1744332072352,0.1259135,79474.0,79473.0,0.1259144]
[1744332072547,0.00018841,79478.0,79474.0,0.0629562]
[1744332072858,0.00018841,79478.0,79477.0,0.1259081]
[1744332073056,0.00018841,79478.0,79477.0,0.23402184]
[1744332073357,0.12609491,79478.0,79477.0,0.23655938]
[1744332073555,0.12609491,79478.0,79477.0,0.01945128]
[1744332074357,0.12609491,79478.0,79477.0,0.02026908]
[1744332074558,0.16649491,79478.0,79477.0,0.14617718]
[1744332074756,0.00018841,79478.0,79477.0,0.14617718]
[1744332075358,0.12609491,79478.0,79477.0,0.14617718]
[1744332076056,0.00018841,79478.0,79477.0,0.14617718]
[1744332076462,0.00018841,79478.0,79477.0,0.14626434]
[1744332078454,0.1541319,79505.0,79497.0,0.1258764]
[1744332078655,0.4866754,79498.0,79497.0,0.1258764]
[1744332078851,0.1629359,79500.0,79497.0,0.1258764]
[1744332078852,0.1,79500.0,79499.0,0.1258732]
[1744332079056,0.1,79500.0,79499.0,0.14300662]
[1744332079454,0.1,79500.0,79499.0,0.14644912]
[1744332079859,0.1,79500.0,79499.0,0.18854912]
[1744332081453,0.1,79500.0,79499.0,0.1890207]
[1744332083149,0.1,79500.0,79499.0,0.18983631]
[1744332084261,0.1,79500.0,79499.0,0.19065192]
[1744332085659,0.2258717,79500.0,79499.0,0.19065192]
[1744332085964,0.2258717,79500.0,79499.0,0.02267872]
[1744332086154,0.2258717,79500.0,79499.0,0.14855192]
[1744332086662,0.2681717,79500.0,79499.0,0.14855192]
[1744332086868,0.2681717,79500.0,79499.0,0.14795565]
[1744332087054,0.2681717,79500.0,79499.0,0.22795565]
[1744332087367,0.1,79500.0,79499.0,0.22795565]
[1744332089261,0.2258717,79500.0,79499.0,0.22795565]
[1744332090265,0.3059717,79500.0,79499.0,0.22795565]
[1744332090764,0.3059717,79500.0,79499.0,0.21094692]
[1744332091267,0.3059717,79500.0,79499.0,0.18752451]
[1744332091869,0.3059717,79500.0,79499.0,0.17056223]
[1744332092368,0.3059717,79500.0,79499.0,0.17137754]
[1744332092872,0.3059717,79500.0,79499.0,0.1889358]
[1744332094856,0.6667717,79500.0,79499.0,0.02391758]
[1744332095058,0.6667717,79500.0,79499.0,0.00670434]
[1744332097269,0.6667717,79500.0,79499.0,0.13257754]
[1744332097665,0.5006,79500.0,79499.0,0.14985131]
[1744332098061,0.6264717,79500.0,79499.0,0.23025131]
[1744332098269,0.5006,79500.0,79499.0,0.23106763]
[1744332099265,0.5006,79500.0,79499.0,0.22354697]
[1744332099466,0.5006,79500.0,79499.0,0.23188395]
[1744332100370,0.4608,79500.0,79499.0,0.23188395]
[1744332100969,0.0629177,79523.0,79509.0,0.1258574]
[1744332101175,0.3608,79525.0,79513.0,0.0629252]
[1744332101369,0.03607869,79520.0,79519.0,0.1258416]
[1744332101573,0.22385111,79526.0,79519.0,0.1258416]
[1744332101574,0.22385111,79526.0,79525.0,0.1258321]
[1744332101773,0.22385111,79526.0,79525.0,0.23426587]
[1744332102373,0.22385111,79526.0,79525.0,0.27306587]
[1744332102573,0.22385111,79526.0,79525.0,0.28140285]
[1744332102870,0.0004,79530.0,79529.0,0.1258258]
[1744332103065,0.0004,79530.0,79529.0,0.50389957]
[1744332103283,0.22385111,79533.0,79532.0,0.125821]
[1744332103468,0.22385111,79533.0,79532.0,0.15143175]
[1744332103967,0.17445111,79533.0,79532.0,0.15143175]
[1744332104163,0.3608,79545.0,79541.0,0.0629027]
[1744332104368,0.29904768,79561.0,79553.0,0.1257878]
[1744332104572,0.1659862,79554.0,79553.0,0.15139855]
[1744332104776,0.2065862,79554.0,79553.0,0.13412478]
[1744332104977,0.2065862,79554.0,79553.0,0.00833698]
[1744332105677,0.2065862,79554.0,79553.0,0.13412478]
[1744332106781,0.0808,79554.0,79553.0,0.15204504]
[1744332106967,0.0808,79554.0,79553.0,0.16906371]
[1744332107172,0.149892,79565.0,79564.0,0.1257704]
[1744332107375,0.149892,79565.0,79564.0,0.52150933]
[1744332107579,0.149892,79565.0,79564.0,0.52984631]
[1744332107975,0.149892,79565.0,79564.0,0.60524631]
[1744332109184,0.1071492,79565.0,79564.0,0.85524631]
[1744332109691,0.1071492,79565.0,79564.0,2.35524631]
[1744332109873,0.1071492,79565.0,79564.0,1.74444631]
[1744332111082,0.0370302,79565.0,79564.0,2.10524631]
[1744332111285,0.0034566,79565.0,79564.0,2.10524631]
[1744332111485,1e-07,79565.0,79564.0,2.10524631]
[1744332112477,0.125759,79574.0,79573.0,0.1886265]
[1744332112678,0.125759,79574.0,79573.0,0.08956297]
[1744332113085,0.125759,79574.0,79573.0,0.10615251]
[1744332113283,0.125759,79574.0,79573.0,0.08780312]
[1744332113482,0.165759,79574.0,79573.0,0.08780312]
[1744332114183,0.165759,79574.0,79573.0,0.03423672]
[1744332115591,0.165759,79574.0,79573.0,0.01764718]
[1744332116183,0.165759,79574.0,79573.0,0.14340338]
[1744332116390,0.165759,79574.0,79573.0,0.01764718]
[1744332116596,0.165759,79574.0,79573.0,0.14340338]
[1744332117695,0.165759,79574.0,79573.0,0.1599273]
[1744332118304,0.165759,79574.0,79573.0,0.14340338]
[1744332118596,0.165759,79574.0,79573.0,0.00833698]
[1744332119296,0.415759,79574.0,79573.0,0.00833698]
[1744332119696,0.165759,79574.0,79573.0,0.00833698]
[1744332120183,0.165759,79574.0,79573.0,0.13409318]
[1744332121298,0.165759,79574.0,79573.0,0.00833698]
[1744332122297,0.165759,79574.0,79573.0,0.02491079]
[1744332122794,0.165759,79574.0,79573.0,0.15066699]
[1744332123096,0.165759,79574.0,79573.0,0.16928323]
[1744332124097,0.0405,79575.0,79574.0,0.1257546]
[1744332124299,0.166253,79575.0,79574.0,0.22107084]
[1744332124798,0.0405,79575.0,79574.0,0.24598163]
[1744332125200,0.0405,79575.0,79574.0,1.74598163]
[1744332125897,0.166253,79575.0,79574.0,1.74598163]
[1744332126096,0.166253,79575.0,79574.0,1.54352703]
[1744332126297,0.166253,79575.0,79574.0,0.04352703]
[1744332126900,0.166253,79575.0,79574.0,0.02491079]
[1744332127900,0.166253,79575.0,79574.0,0.04256568]
[1744332129797,0.166253,79575.0,79574.0,0.16832028]
[1744332130003,0.166253,79575.0,79574.0,0.04256568]
[1744332131304,0.527053,79575.0,79574.0,0.04256568]
[1744332134304,0.6287751,79574.0,79550.0,0.22564722]
[1744332134509,0.6287751,79574.0,79557.0,8e-08]
[1744332134510,0.4865799,79558.0,79557.0,8e-08]
[1744332135006,0.8525799,79558.0,79557.0,8e-08]
[1744332135600,0.61406042,79558.0,79557.0,8e-08]
[1744332137310,0.61406042,79558.0,79553.0,0.22564722]
[1744332137311,0.1257862,79554.0,79553.0,0.1159179]
[1744332138395,0.1257925,79550.0,79549.0,0.29814116]
[1744332138598,0.125802,79544.0,79543.0,0.37629073]
[1744332138795,0.1258115,79538.0,79531.0,0.00050295]
[1744332139000,0.125821,79532.0,79531.0,0.00050295]
[1744332139202,0.125821,79532.0,79531.0,5e-08]
[1744332139800,0.163921,79532.0,79531.0,5e-08]
[1744332141906,0.125821,79532.0,79531.0,5e-08]
[1744332149712,0.216941,79532.0,79531.0,5e-08]
[1744332152404,0.125821,79532.0,79531.0,5e-08]
[1744332153507,0.125821,79532.0,79531.0,0.20192265]
[1744332153712,0.125821,79532.0,79531.0,0.20188265]
[1744332154316,0.125821,79532.0,79531.0,0.07606005]
[1744332155112,0.23797174,79534.0,79533.0,0.1258194]
[1744332155617,0.11215324,79534.0,79533.0,0.3758194]
[1744332155825,0.1258167,79535.0,79533.0,0.3758194]
[1744332155826,0.1258167,79535.0,79534.0,0.1258178]
[1744332156018,0.1258167,79535.0,79534.0,0.1620178]
[1744332156216,0.1258167,79535.0,79534.0,0.4120178]
[1744332156521,0.3608,79544.0,79538.0,0.1258115]
[1744332156722,0.12599848,79539.0,79538.0,0.1258115]
[1744332156911,0.12599848,79539.0,79538.0,1.6258115]
[1744332157323,0.12599848,79539.0,79538.0,1.6620115]
[1744332157915,0.00018858,79539.0,79538.0,1.6620115]
[1744332158318,0.12599848,79539.0,79538.0,1.9120115]
[1744332158618,0.12599848,79539.0,79538.0,1.5362]
[1744332159520,0.12599848,79539.0,79538.0,1.5721]
[1744332159915,0.12599848,79539.0,79538.0,1.6979115]
[1744332160821,0.12599848,79539.0,79538.0,0.1979115]
[1744332162515,0.12599848,79539.0,79538.0,0.0721]
[1744332163215,0.12599848,79539.0,79538.0,0.1979115]
[1744332163516,0.12599848,79539.0,79538.0,0.2344115]
[1744332166624,0.12599848,79539.0,79538.0,0.1086]
[1744332166810,0.12599848,79539.0,79538.0,0.0727]
[1744332167020,0.1258305,79526.0,79525.0,0.0384]
[1744332167224,0.1258305,79526.0,79525.0,0.2368321]
[1744332168719,0.3608,79531.0,79528.0,0.0629134]
[1744332169028,0.1887382,79530.0,79529.0,0.2600364]
[1744332169226,0.1887382,79530.0,79529.0,0.1342122]
[1744332170630,0.1887382,79530.0,79529.0,0.1971258]
[1744332170832,0.2244382,79530.0,79529.0,0.0713]
[1744332171129,0.2244382,79530.0,79529.0,0.1971258]
[1744332171331,0.1887382,79530.0,79529.0,0.1971258]
[1744332171528,0.0629124,79530.0,79529.0,0.1971258]
[1744332174427,0.1011124,79530.0,79529.0,0.0713]
[1744332174628,0.1011124,79530.0,79529.0,0.1971258]
[1744332174823,0.0629124,79530.0,79529.0,0.1971258]
[1744332177636,0.0629124,79530.0,79529.0,0.0713]
[1744332177833,0.1365124,79530.0,79529.0,0.0713]
[1744332178240,0.1365124,79530.0,79529.0,0.1971258]
[1744332178533,0.0978124,79530.0,79529.0,0.1971258]
[1744332179030,0.0978124,79530.0,79529.0,0.0713]
[1744332179232,0.0978124,79530.0,79524.0,0.00018858]
[1744332179233,0.1258321,79525.0,79524.0,0.00018858]
[1744332179435,0.1258527,79512.0,79511.0,0.0382]
[1744332179627,0.4866527,79512.0,79511.0,0.0379]
[1744332180529,0.4866527,79512.0,79509.0,0.125857]
[1744332180530,0.1258574,79509.0,79508.0,0.0382]
[1744332180731,0.125859,79508.0,79507.0,0.0005031]
[1744332180926,0.197159,79508.0,79507.0,0.0005031]
[1744332181122,0.20901687,79508.0,79507.0,0.0005031]
[1744332181528,0.20901687,79508.0,79507.0,0.00213232]
[1744332182336,0.20901687,79508.0,79507.0,2e-08]
[1744332182531,0.0629351,79501.0,79485.0,0.0373]
[1744332182839,0.4866859,79491.0,79486.0,0.125893]
[1744332183138,0.4866859,79491.0,79484.0,0.0362]
[1744332183431,0.4866859,79491.0,79483.0,0.00050325]
[1744332183632,0.125897,79484.0,79483.0,0.00069195]
[1744332183833,0.0629553,79476.0,79471.0,0.37635369]
[1744332184027,0.4237587,79472.0,79471.0,0.37635369]
[1744332184939,0.4604587,79472.0,79471.0,0.37635369]
[1744332186134,0.4604587,79472.0,79471.0,0.50227129]
[1744332186529,0.4604587,79472.0,79471.0,0.37635369]
[1744332187140,0.3975,79472.0,79471.0,0.50227129]
[1744332187337,0.3608,79472.0,79471.0,0.50227129]
[1744332187538,0.0629534,79478.0,79477.0,0.1259081]
[1744332187738,0.0001887,79479.0,79478.0,0.1259065]
[1744332187938,0.1260936,79479.0,79478.0,0.1626065]
[1744332188239,0.1260936,79479.0,79478.0,0.2005065]
[1744332188638,0.1260936,79479.0,79478.0,0.20208747]
[1744332189438,0.0001887,79479.0,79478.0,0.20208747]
[1744332190038,0.1260936,79479.0,79478.0,0.20208747]
[1744332190543,0.0001887,79479.0,79478.0,0.20208747]
[1744332191445,0.1260936,79479.0,79478.0,0.20208747]
[1744332196949,0.1260936,79479.0,79478.0,0.07618097]
[1744332197142,0.1971936,79479.0,79478.0,0.07618097]
[1744332197336,0.1971936,79479.0,79478.0,0.00158097]
[1744332198447,0.1619936,79479.0,79478.0,0.00158097]
[1744332199552,0.1619936,79479.0,79478.0,0.12748747]
[1744332199553,0.0001887,79479.0,79478.0,0.12748747]
[1744332200946,0.0629386,79497.0,79488.0,0.1258907]
[1744332200947,0.3608,79489.0,79488.0,0.1258907]
[1744332201149,0.1258832,79493.0,79492.0,0.1258843]
[1744332201351,0.5496246,79493.0,79492.0,0.1258843]
[1744332201742,0.5496246,79493.0,79492.0,0.19986527]
[1744332202447,0.5496246,79493.0,79492.0,0.07398097]
[1744332202649,0.5496246,79493.0,79492.0,0.00158097]
[1744332204052,0.5496246,79493.0,79492.0,0.12746527]
[1744332204053,0.3608,79493.0,79492.0,0.12746527]
[1744332204258,0.1258782,79496.0,79495.0,0.1258796]
[1744332204457,0.0629376,79498.0,79497.0,0.1258764]
[1744332204757,0.0629376,79498.0,79497.0,0.12745737]
[1744332204953,0.0629376,79498.0,79497.0,0.00158097]
[1744332205757,0.0629376,79498.0,79497.0,0.12745737]
[1744332207154,0.0629376,79498.0,79497.0,0.00158097]
[1744332207343,0.0629376,79498.0,79497.0,0.09057293]
[1744332207748,0.0629376,79498.0,79497.0,0.21644933]
[1744332208658,0.0001887,79500.0,79499.0,0.1258732]
[1744332208958,0.1260604,79500.0,79499.0,0.12745417]
[1744332209159,0.0001887,79500.0,79499.0,0.14394613]
[1744332209853,0.0001887,79500.0,79499.0,1.64394613]
[1744332210360,0.0001887,79500.0,79499.0,0.14394613]
[1744332211053,0.0001887,79500.0,79499.0,1.64394613]
[1744332212161,0.0004,79506.0,79505.0,0.1258637]
[1744332212352,0.0004,79506.0,79505.0,0.23343566]
[1744332212962,0.0004,79506.0,79505.0,0.30761663]
[1744332213362,0.0004,79506.0,79505.0,0.31704169]
[1744332213665,0.0001887,79513.0,79505.0,0.31704169]
[1744332213666,0.0001887,79513.0,79512.0,0.1258527]
[1744332213859,0.0001887,79513.0,79512.0,0.12743367]
[1744332214061,0.0001887,79513.0,79512.0,0.14392563]
[1744332214266,0.1260398,79513.0,79512.0,0.14392563]
[1744332214463,0.1260398,79513.0,79512.0,0.21802563]
[1744332216466,0.1260398,79513.0,79512.0,0.01807293]
[1744332217267,0.1629398,79513.0,79512.0,0.01807293]
[1744332217469,0.1258622,79506.0,79505.0,0.00961376]
[1744332217654,0.4866622,79506.0,79505.0,0.00961376]
[1744332218263,0.5606622,79506.0,79505.0,0.00961376]
[1744332219270,0.5606622,79506.0,79505.0,0.0001887]
[1744332222266,0.0629404,79495.0,79487.0,0.2169307]
[1744332222475,0.3608,79488.0,79487.0,0.2169307]
[1744332222972,0.0742,79494.0,79491.0,0.0629423]
[1744332223271,0.2261239,79494.0,79493.0,0.1258827]
[1744332223972,0.2630239,79494.0,79493.0,0.1633827]
[1744332225468,0.2630239,79494.0,79493.0,0.0375]
[1744332225674,0.1258907,79488.0,79487.0,0.09104]
[1744332225870,0.4866907,79488.0,79485.0,0.0001887]
[1744332226070,0.1258938,79486.0,79485.0,0.0001887]
[1744332227171,0.1971938,79486.0,79485.0,0.0001887]
[1744332227571,0.0629534,79478.0,79471.0,0.29951593]
[1744332227779,0.486716,79472.0,79471.0,0.29951593]
[1744332227974,0.847516,79472.0,79471.0,0.29951593]
[1744332228374,0.1259271,79465.0,79464.0,0.37562158]
[1744332228571,0.0629737,79453.0,79444.0,0.00923584]
[1744332228770,0.1259715,79437.0,79436.0,0.48624229]
[1744332229178,0.1259715,79437.0,79436.0,0.61221539]
[1744332229479,0.1944715,79437.0,79436.0,0.62160099]
[1744332229774,0.1944715,79437.0,79436.0,0.45124229]
[1744332229976,0.0629887,79434.0,79429.0,0.00018883]
[1744332230174,0.4867826,79430.0,79429.0,0.00018883]
[1744332232676,0.3608,79430.0,79429.0,0.12617303]
[1744332232976,0.4867826,79430.0,79429.0,0.12617303]
[1744332233478,0.3608,79430.0,79429.0,0.12617303]
[1744332235379,0.3608,79430.0,79429.0,0.16317303]
[1744332235979,0.3608,79430.0,79429.0,0.25425303]
[1744332236183,0.2519492,79438.0,79437.0,0.1259685]
[1744332236580,0.2890492,79438.0,79437.0,0.1259685]
[1744332236778,0.2890492,79438.0,79437.0,0.2002685]
[1744332237584,0.3608,79439.0,79438.0,0.1259699]
[1744332237782,0.3608,79439.0,79438.0,0.2002699]
[1744332238472,0.3608,79439.0,79438.0,0.4502699]
[1744332238673,0.00018883,79444.0,79443.0,0.125962]
[1744332239479,0.00018883,79444.0,79443.0,0.161462]
[1744332239681,0.00018883,79444.0,79443.0,0.252582]
[1744332239891,0.00018883,79444.0,79443.0,0.287682]
[1744332240075,0.00018883,79444.0,79443.0,0.196562]
[1744332240280,0.00018883,79444.0,79443.0,0.0706]
[1744332240281,0.12614923,79444.0,79443.0,0.0706]
[1744332240483,0.00018883,79444.0,79443.0,0.196562]
[1744332240889,0.12614923,79444.0,79443.0,0.196562]
[1744332241086,0.00018883,79444.0,79443.0,0.196562]
[1744332241986,0.00018883,79444.0,79443.0,0.557362]
[1744332242281,0.00018883,79444.0,79443.0,0.648482]
[1744332242879,0.12614923,79444.0,79443.0,0.287682]
[1744332243079,0.00018883,79444.0,79443.0,0.287682]
[1744332246586,0.12614923,79444.0,79443.0,0.196562]
[1744332246890,0.00018883,79444.0,79443.0,0.196562]
[1744332247690,0.3608,79457.0,79456.0,0.1259414]
[1744332247891,0.3608,79457.0,79454.0,0.0629716]
[1744332247892,0.3608,79459.0,79457.0,0.1259398]
[1744332248589,0.3608,79459.0,79457.0,0.1620398]
[1744332248991,0.1263382,79458.0,79457.0,0.1620398]
[1744332249191,0.1259429,79455.0,79454.0,0.125944]
[1744332251689,0.0629721,79455.0,79454.0,0.1259441]
[1744332251883,0.0361,79457.0,79453.0,0.0629723]
[1744332252078,0.0004,79458.0,79457.0,0.1259398]
[1744332253687,0.1263382,79458.0,79457.0,0.1259398]
[1744332253886,0.2006382,79458.0,79457.0,0.1259398]
[1744332254484,0.2006382,79458.0,79455.0,0.13048117]
[1744332254485,0.2636074,79458.0,79455.0,0.13048117]
[1744332254791,0.2636074,79458.0,79457.0,0.1259398]
[1744332255191,0.1376692,79458.0,79457.0,0.1259398]
[1744332255896,0.0004,79458.0,79457.0,0.1616398]
[1744332259693,0.0004,79458.0,79457.0,0.1971398]
[1744332261798,0.00018883,79465.0,79464.0,0.1259287]
[1744332261997,0.00018883,79465.0,79464.0,0.4867287]
[1744332262700,0.00018883,79465.0,79464.0,0.5619287]
[1744332263498,0.00018883,79465.0,79464.0,0.6530087]
[1744332263994,0.00018883,79465.0,79464.0,2.1530087]
[1744332265500,0.00018883,79465.0,79464.0,2.16223587]
[1744332267496,0.12611593,79465.0,79464.0,1.7427391]
[1744332267796,0.12611593,79465.0,79464.0,0.1168104]
[1744332268003,0.12611593,79465.0,79464.0,0.2427391]
[1744332268510,0.12611593,79465.0,79464.0,0.22623587]
[1744332272197,0.12611593,79465.0,79464.0,0.00922717]
[1744332272393,0.48691593,79465.0,79464.0,0.1259287]
[1744332272806,0.0629737,79453.0,79444.0,0.0364]
[1744332273007,0.1259439,79459.0,79458.0,0.0629677]
[1744332273305,0.1259439,79459.0,79456.0,0.0629702]
[1744332273306,0.1259434,79458.0,79457.0,0.0629691]
[1744332273498,0.1259429,79455.0,79454.0,0.062972]
[1744332274112,0.1259429,79455.0,79454.0,0.07246801]
[1744332274408,0.1259429,79455.0,79454.0,0.00949601]
[1744332274597,0.1889156,79455.0,79454.0,0.1259445]
[1744332275310,0.1889156,79455.0,79454.0,0.14242341]
[1744332275511,0.1889156,79455.0,79454.0,0.01647891]
[1744332275907,0.1889156,79455.0,79454.0,0.14242341]
[1744332276310,0.1889156,79455.0,79454.0,0.01647891]
[1744332277508,0.1889156,79455.0,79454.0,0.0260127]
[1744332278011,0.1023705,79457.0,79454.0,0.0260127]
[1744332278216,0.1630429,79456.0,79455.0,0.1259429]
[1744332278513,0.1630429,79456.0,79455.0,0.1650429]
[1744332278713,0.1630429,79456.0,79455.0,0.18152181]
[1744332279109,0.1630429,79456.0,79455.0,0.21902181]
[1744332279314,0.1630429,79456.0,79455.0,0.18152181]
[1744332279801,0.1630429,79456.0,79455.0,0.19831501]
[1744332280410,0.1630429,79456.0,79455.0,0.03327211]
[1744332280608,0.1630414,79456.0,79455.0,0.01647891]
[1744332280807,0.1630414,79456.0,79455.0,0.14242181]
[1744332283808,0.1630414,79456.0,79455.0,0.01647891]
[1744332284015,0.0629725,79454.0,79450.0,0.00018883]
[1744332284307,0.1259731,79436.0,79435.0,0.00050355]
[1744332284514,0.1259937,79423.0,79411.0,0.06350991]
[1744332284817,0.4867937,79423.0,79412.0,0.0385]
[1744332285016,0.4867937,79423.0,79417.0,0.0630013]
[1744332285201,0.4867937,79423.0,79416.0,0.0385]
[1744332285616,0.1260048,79416.0,79415.0,0.44996039]
[1744332285808,0.4868048,79416.0,79415.0,0.46210204]
[1744332287405,0.6108,79416.0,79400.0,0.1]
[1744332287610,0.4868286,79401.0,79400.0,0.1]
[1744332288419,0.5234286,79401.0,79400.0,0.1]
[1744332289821,0.5234286,79401.0,79400.0,0.2260302]
[1744332290015,0.5234286,79401.0,79400.0,0.1]
[1744332290619,0.5234286,79401.0,79393.0,0.00012657]
[1744332290620,0.1260397,79394.0,79393.0,0.00012657]
[1744332290810,0.4868397,79394.0,79393.0,0.12616787]
[1744332291123,0.3608,79412.0,79394.0,0.0630198]
[1744332291326,0.0385,79400.0,79399.0,0.1260318]
[1744332291524,0.0385,79400.0,79395.0,0.077]
[1744332291525,0.1260365,79396.0,79395.0,0.077]
[1744332291724,0.1260397,79394.0,79393.0,0.12616787]
[1744332292221,0.1260397,79394.0,79393.0,0.16376787]
[1744332292422,0.2039397,79394.0,79393.0,0.16376787]
[1744332292921,0.3608,79396.0,79395.0,0.1260381]
[1744332293724,0.3608,79396.0,79395.0,0.2044381]
[1744332293919,0.4868365,79396.0,79395.0,0.039]
[1744332294718,0.4868365,79396.0,79395.0,0.1650381]
[1744332294719,0.5237365,79396.0,79395.0,0.1650381]
[1744332295116,0.3608,79396.0,79395.0,0.1650381]
[1744332295622,0.3608,79396.0,79395.0,0.2054381]
[1744332295924,0.0369,79405.0,79399.0,0.0630152]
[1744332296116,0.1260239,79404.0,79402.0,0.126027]
[1744332296312,0.06299,79432.0,79402.0,0.126027]
[1744332296618,0.06299,79432.0,79400.0,0.1380144]
[1744332296619,0.12620633,79408.0,79407.0,0.1260191]
[1744332297025,0.00018883,79408.0,79407.0,0.1260191]
[1744332297327,0.00018883,79408.0,79407.0,0.1640191]
[1744332297626,0.12620633,79408.0,79407.0,0.2025191]
[1744332298017,0.20190633,79408.0,79407.0,0.2025191]
[1744332298823,0.20190633,79408.0,79388.0,0.4238245]
[1744332298824,0.1260308,79400.0,79399.0,0.1260286]
[1744332299026,0.07588883,79408.0,79398.0,0.0630166]
[1744332299224,0.20190693,79408.0,79407.0,0.1260191]
[1744332299522,0.00018883,79408.0,79407.0,0.1260191]
[1744332300113,0.00018883,79408.0,79407.0,0.2025191]
[1744332300515,0.12620633,79408.0,79407.0,0.0765]
[1744332300720,0.12620633,79408.0,79407.0,0.038]
[1744332300721,0.20520633,79408.0,79407.0,0.038]
[1744332300921,0.1260319,79400.0,79399.0,0.1260287]
[1744332301215,0.3608,79401.0,79399.0,0.1260287]
[1744332301422,0.36098883,79408.0,79407.0,0.1260191]
[1744332301719,0.36098883,79408.0,79398.0,0.15494788]
[1744332301914,0.1260277,79402.0,79397.0,0.0630173]
[1744332302119,0.3608,79401.0,79400.0,0.1260302]
[1744332302330,0.0630174,79397.0,79393.0,0.00012657]
[1744332302534,0.4868397,79394.0,79393.0,0.00012657]
[1744332305031,0.4868397,79394.0,79393.0,0.12616787]
[1744332305229,0.4868397,79394.0,79393.0,0.00012657]
[1744332305534,0.4868397,79394.0,79393.0,0.12616787]
[1744332305733,0.3608,79394.0,79393.0,0.12616787]
[1744332305944,0.4868397,79394.0,79393.0,0.12616787]
[1744332307232,0.5237397,79394.0,79393.0,0.12616787]
[1744332309327,0.5237397,79394.0,79393.0,0.00012657]
[1744332311428,0.1260492,79388.0,79387.0,0.00050386]
[1744332311631,0.1891225,79369.0,79368.0,0.1260775]
[1744332311935,0.1260826,79367.0,79366.0,0.00016028]
[1744332312329,0.1260826,79367.0,79366.0,0.00948549]
[1744332312530,0.0763,79367.0,79366.0,0.1260842]
[1744332312836,0.2023855,79367.0,79366.0,0.1260842]
[1744332313335,0.1260874,79364.0,79363.0,0.00050401]
[1744332313539,0.4868874,79364.0,79363.0,0.00050401]
[1744332313741,0.4868874,79364.0,79363.0,0.12659291]
[1744332314045,0.4868874,79364.0,79363.0,0.00050401]
[1744332314235,0.1261255,79340.0,79339.0,0.00050416]
[1744332314429,0.4869255,79340.0,79339.0,0.00050416]
[1744332314628,0.4869255,79340.0,79339.0,0.13624703]
[1744332314829,0.4869255,79340.0,79339.0,0.12663126]
[1744332315034,0.3608,79340.0,79339.0,0.12663126]
[1744332315234,0.00018896,79347.0,79346.0,0.126116]
[1744332315734,0.3608,79360.0,79359.0,0.1260953]
[1744332316238,0.486881,79368.0,79367.0,0.1260826]
[1744332316738,0.1260889,79363.0,79362.0,0.1891302]
[1744332316925,0.1260889,79363.0,79350.0,0.15494788]
[1744332316926,0.3608,79363.0,79351.0,0.0630539]
[1744332317230,0.2669432,79362.0,79361.0,0.1260905]
[1744332317634,0.3608,79363.0,79362.0,0.1260905]
[1744332318140,0.0763,79371.0,79370.0,0.1260778]
[1744332318341,0.0382,79371.0,79370.0,0.1260778]
[1744332318642,0.3608,79372.0,79371.0,0.1260762]
[1744332319036,0.4868746,79372.0,79371.0,0.1260762]
[1744332319732,0.5242746,79372.0,79371.0,0.1260762]
[1744332320045,0.06322406,79375.0,79374.0,0.1260715]
[1744332320046,0.00018896,79375.0,79374.0,0.1260715]
[1744332320430,0.00018896,79375.0,79364.0,0.0630423]
[1744332320431,0.0630371,79373.0,79364.0,0.0630423]
[1744332320636,0.3608,79365.0,79364.0,0.0630423]
[1744332320830,0.15012667,79368.0,79367.0,0.1260826]
[1744332321233,0.27620767,79368.0,79367.0,0.1260826]
[1744332321427,0.27620767,79368.0,79364.0,0.0779]
[1744332321428,0.15012667,79368.0,79364.0,0.0779]
[1744332321633,0.1260858,79365.0,79364.0,0.2670274]
[1744332321840,0.4868832,79367.0,79366.0,0.1260842]
[1744332322042,0.4,79367.0,79366.0,0.1260842]
[1744332322237,0.3608,79367.0,79366.0,0.1260842]
[1744332322433,0.15012667,79368.0,79367.0,0.1260826]
[1744332322737,0.0004,79386.0,79375.0,0.1260699]
[1744332322738,1e-08,79376.0,79375.0,0.1260699]
[1744332323036,0.079,79406.0,79405.0,0.1260223]
[1744332323238,0.0004,79410.0,79409.0,0.1260159]
[1744332323834,0.1264143,79410.0,79409.0,0.14297695]
[1744332324136,0.1264143,79410.0,79409.0,0.01696105]
[1744332324339,0.0004,79410.0,79409.0,0.14297695]
[1744332324729,0.1264143,79410.0,79409.0,0.01696105]
[1744332325238,0.1264143,79410.0,79409.0,0.14297695]
[1744332325437,0.1264143,79410.0,79409.0,0.01696105]
[1744332325639,0.1654143,79410.0,79409.0,0.01696105]
[1744332326532,0.1260254,79403.0,79402.0,0.00018896]
[1744332326737,0.4868254,79403.0,79402.0,0.14325951]
[1744332326936,0.4868254,79403.0,79402.0,0.00018896]
[1744332327336,0.1260762,79372.0,79371.0,0.063037]
[1744332327639,0.1260762,79372.0,79371.0,0.1571503]
[1744332327845,0.5669762,79372.0,79371.0,0.11116177]
[1744332328039,0.5669762,79372.0,79371.0,0.07256177]
[1744332328238,0.4409,79372.0,79371.0,0.07256177]
[1744332328444,0.2061746,79372.0,79371.0,0.07256177]
[1744332328640,0.3608,79378.0,79376.0,0.1260667]
[1744332328641,0.1260674,79377.0,79376.0,0.1260667]
[1744332329046,0.2040674,79377.0,79376.0,0.1260667]
[1744332329246,0.1260715,79375.0,79374.0,0.1260711]
[1744332329641,0.2036715,79375.0,79374.0,0.1260711]
[1744332329840,0.3608,79378.0,79377.0,0.1260667]
[1744332330036,0.00018896,79379.0,79378.0,0.1260651]
[1744332331843,0.3608,79394.0,79393.0,0.1260413]
[1744332332642,0.0791,79400.0,79393.0,0.1260413]
[1744332332643,0.126035,79397.0,79396.0,0.1260365]
[1744332333642,0.0791,79400.0,79392.0,0.0403]
[1744332333843,0.48701656,79404.0,79403.0,0.1260254]
[1744332335349,0.48701656,79404.0,79392.0,0.0630212]
[1744332335350,0.36098896,79404.0,79390.0,0.17446862]
[1744332335650,0.4868397,79394.0,79393.0,0.1643413]
[1744332336048,0.4868397,79394.0,79393.0,0.1260413]